fUSD/lending_fUSD_20241023
["ID","MTS","AMOUNT","RATE_DAILY","PERIOD"]
[340693279,1729691438502,-151.3,0.0004979,120]
[340693280,1729691438512,-169.02929489,0.00049798,120]
[340693281,1729691438521,-500.0,0.00049798,31]
[340693282,1729691438530,-436.72228486,0.00049798,31]
[340693283,1729691438540,-500.0,0.00049798,120]
[340693284,1729691438549,-500.0,0.00049798,120]
[340693285,1729691438561,-500.0,0.00049798,120]
[340693286,1729691438570,-778.87,0.00049798,120]
[340693287,1729691438579,-500.0,0.00049798,120]
[340693288,1729691438589,-1806.21,0.00049798,120]
[340693289,1729691438598,-500.0,0.00049798,120]
[340693291,1729691438607,-500.0,0.00049798,120]
[340693292,1729691438617,-764.74,0.00049798,120]
[340693293,1729691438626,-500.0,0.00049798,120]
[340693294,1729691438636,-500.0,0.00049798,120]
[340693295,1729691438645,-200.0,0.00049798,120]
[340693296,1729691438653,-500.0,0.00049798,120]
[340693297,1729691438662,-804.5,0.00049798,120]
[340693298,1729691438672,-500.0,0.00049798,120]
[340693299,1729691438681,-500.0,0.00049798,120]
[340693300,1729691438690,-500.0,0.00049798,120]
[340693301,1729691438699,-670.88,0.00049798,120]
[340693302,1729691438708,-1130.12,0.00049798,120]
[340693303,1729691438717,-500.0,0.00049798,120]
[340693304,1729691438726,-500.0,0.00049798,120]
[340693305,1729691438740,-578.29,0.00049798,120]
[340693306,1729691438749,-500.0,0.00049798,120]
[340693307,1729691438757,-500.0,0.00049798,120]
[340693308,1729691438766,-500.0,0.00049798,120]
[340693309,1729691438775,-1174.55,0.00049798,120]
[340693310,1729691438784,-500.0,0.00049798,120]
[340693311,1729691438793,-500.0,0.00049798,120]
[340693312,1729691438802,-557.88530082,0.00049798,120]
[340693313,1729691438811,-500.0,0.00049798,120]
[340693314,1729691438820,-1183.75,0.00049798,120]
[340693315,1729691438829,-500.0,0.00049798,120]
[340693316,1729691438838,-898.47,0.00049798,120]
[340693317,1729691438847,-500.0,0.00049798,120]
[340693318,1729691438856,-500.0,0.00049798,120]
[340693319,1729691438865,-500.0,0.00049798,120]
[340693320,1729691438875,-500.0,0.00049798,120]
[340693321,1729691438886,-500.0,0.00049798,120]
[340693322,1729691438896,-546.42,0.00049798,120]
[340693323,1729691438906,-735.75,0.00049798,120]
[340693324,1729691438915,-893.45,0.00049798,120]
[340693325,1729691438924,-500.0,0.00049798,120]
[340693326,1729691438933,-1426.42,0.00049798,120]
[340693327,1729691438942,-500.0,0.00049798,120]
[340693328,1729691438951,-500.0,0.00049798,120]
[340693329,1729691438960,-500.0,0.00049798,120]
[340693330,1729691438970,-500.0,0.00049798,120]
[340693331,1729691438979,-500.0,0.00049798,120]
[340693332,1729691438989,-500.0,0.00049798,120]
[340693333,1729691438998,-500.0,0.00049798,120]
[340693334,1729691439007,-500.0,0.00049798,120]
[340693335,1729691439016,-500.0,0.00049798,120]
[340693336,1729691439025,-500.0,0.00049798,120]
[340693337,1729691439034,-500.0,0.00049798,120]
[340693338,1729691439043,-1971.1,0.00049798,120]
[340693339,1729691439052,-629.42,0.00049798,120]
[340693340,1729691439061,-658.24,0.00049798,120]
[340693341,1729691439070,-500.0,0.00049798,120]
[340693342,1729691439079,-500.0,0.00049798,120]
[340693343,1729691439088,-500.0,0.00049798,120]
[340693344,1729691439097,-1465.85,0.00049798,120]
[340693345,1729691439106,-528.26650329,0.00049798,120]
[340693346,1729691439115,-500.0,0.00049798,120]
[340693347,1729691439124,-500.0,0.00049798,120]
[340693348,1729691439134,-500.0,0.00049798,120]
[340693349,1729691439143,-3529.23,0.00049798,120]
[340693350,1729691439152,-500.0,0.00049798,120]
[340693351,1729691439161,-228.12675575,0.00049798,120]
[340693352,1729691439170,-500.0,0.00049798,120]
[340693353,1729691439180,-3378.78,0.00049798,120]
[340693354,1729691439189,-500.0,0.00049798,120]
[340693355,1729691439198,-820.43,0.00049798,120]
[340693356,1729691439207,-500.0,0.00049798,120]
[340693357,1729691439216,-500.0,0.00049798,120]
[340693358,1729691439225,-500.0,0.00049798,120]
[340693359,1729691439235,-500.0,0.00049798,120]
[340693360,1729691439245,-500.0,0.00049798,120]
[340693361,1729691439254,-3392.88,0.00049798,120]
[340693362,1729691439263,-2064.61,0.00049798,120]
[340693363,1729691439272,-500.0,0.00049798,120]
[340693364,1729691439281,-500.0,0.00049798,120]
[340693365,1729691439290,-500.0,0.00049798,120]
[340693366,1729691439299,-1522.52,0.00049798,120]
[340693367,1729691439309,-842.41,0.00049798,120]
[340693368,1729691439318,-500.0,0.00049798,120]
[340693369,1729691439328,-500.0,0.00049798,120]
[340693370,1729691439337,-500.0,0.00049798,120]
[340693371,1729691439347,-508.44,0.00049798,120]
[340693372,1729691439356,-500.0,0.00049798,120]
[340693373,1729691439365,-1222.32,0.00049798,120]
[340693374,1729691439374,-500.0,0.00049798,120]
[340693375,1729691439383,-500.0,0.00049798,120]
[340693376,1729691439393,-500.0,0.00049798,120]
[340693377,1729691439402,-176.73140986,0.00049798,120]
[340693378,1729691439411,-500.0,0.00049798,120]
[340693379,1729691439420,-500.0,0.00049798,120]
[340693380,1729691439430,-2025.07,0.00049798,120]
[340693381,1729691439440,-500.0,0.00049798,120]
[340693382,1729691439450,-762.17,0.00049798,120]
[340693383,1729691439459,-500.84190481,0.00049798,120]
[340693384,1729691439471,-628.90958521,0.00049798,120]
[340693385,1729691439482,-500.0,0.00049798,120]
[340693386,1729691439491,-500.0,0.00049798,120]
[340693387,1729691439501,-500.0,0.00049798,120]
[340693388,1729691439510,-500.0,0.00049798,120]
[340693389,1729691439519,-500.0,0.00049798,120]
[340693390,1729691439528,-553.94055908,0.00049798,120]
[340693391,1729691439537,-500.0,0.00049798,120]
[340693392,1729691439547,-534.34,0.00049798,120]
[340693393,1729691439557,-8644.32,0.00049798,120]
[340693394,1729691439569,-500.0,0.00049798,120]
[340693395,1729691439578,-983.41,0.00049798,120]
[340693396,1729691439588,-500.0,0.00049798,120]
[340693397,1729691439598,-568.51,0.00049798,120]
[340693398,1729691439608,-500.0,0.00049798,120]
[340693399,1729691439618,-500.0,0.00049798,120]
[340693400,1729691439628,-500.0,0.00049798,120]
[340693401,1729691439639,-500.0,0.00049798,120]
[340693403,1729691439649,-500.0,0.00049798,120]
[340693404,1729691439659,-500.0,0.00049798,120]
[340693405,1729691439669,-526.84489092,0.00049798,120]
[340693406,1729691439679,-500.0,0.00049798,120]
[340693407,1729691439690,-500.0,0.00049798,120]
[340693408,1729691439700,-500.0,0.00049798,120]
[340693409,1729691439710,-500.0,0.00049798,120]
[340693410,1729691439719,-245000.0,0.00049799,2]
[340693411,1729691439729,-222.2462706,0.00049799,37]
[340693412,1729691439740,-1672.4377,0.000498,2]
[340693414,1729691439749,-68999.00205521,0.000498,120]
[340693415,1729691439758,-2400.0,0.000498,18]
[340693416,1729691439767,-1500.0,0.00049842,14]
[340693417,1729691439777,-151.3,0.00049878,120]
[340693418,1729691439788,-151.3,0.00049879,120]
[340693419,1729691439799,-151.3,0.00049879,120]
[340693420,1729691439810,-31641.8294805,0.0004988,10]
[340693421,1729691439820,-151.3,0.0004988,120]
[340693422,1729691439831,-150.0,0.00049884,7]
[340693423,1729691439843,-31641.8294805,0.00049888,10]
[340693424,1729691439854,-20711.7542531,0.00049888,10]
[340693425,1729691439864,-151.3,0.00049888,120]
[340693426,1729691439876,-2201.78040153,0.00049889,10]
[340693427,1729691440152,-3195.99049004,0.00049889,10]
[340693432,1729691440435,-38900.79038103,0.00049889,10]
[340693433,1729691440451,-82847.0170123,0.00049889,10]
[340693434,1729691440461,-151.3,0.00049889,120]
[340693435,1729691440471,-151.3,0.00049889,120]
[340693436,1729691440483,-151.3,0.00049889,120]
[340693437,1729691440492,-159.70653956,0.00049889,26]
[340693438,1729691440501,-698.502195,0.0004989,120]
[340693439,1729691440510,-46601.4470694,0.0004989,10]
[340693440,1729691440520,-18852.2629,0.0004989,2]
[340693441,1729691440529,-669.11,0.0004989,2]
[340693442,1729691440539,-1270.541,0.0004989,2]
[340693443,1729691440548,-1758.8238,0.0004989,2]
[340693444,1729691440557,-500.0,0.00049898,120]
[340693445,1729691440568,-162.08305717,0.00049898,120]
[340693446,1729691440577,-500.0,0.00049898,120]
[340693447,1729691440586,-500.0,0.00049898,120]
[340693448,1729691440595,-4332.17,0.00049898,120]
[340693449,1729691440605,-500.0,0.00049898,120]
[340693450,1729691440614,-500.0,0.00049898,120]
[340693451,1729691440623,-3677.17,0.00049898,120]
[340693452,1729691440633,-500.0,0.00049898,120]
[340693453,1729691440642,-1171.42,0.00049898,120]
[340693454,1729691440651,-1003.52,0.00049898,120]
[340693455,1729691440661,-500.0,0.00049898,120]
[340693456,1729691440670,-153.042613,0.00049898,120]
[340693457,1729691440679,-402.470686,0.00049898,120]
[340693458,1729691440688,-500.0,0.00049898,120]
[340693459,1729691440697,-152.467185,0.00049898,120]
[340693460,1729691440706,-500.0,0.00049898,120]
[340693461,1729691440715,-573.031736,0.00049898,120]
[340693462,1729691440727,-500.0,0.00049898,120]
[340693463,1729691440739,-2953.34,0.00049898,120]
[340693464,1729691440748,-500.0,0.00049898,120]
[340693465,1729691440757,-21625.53,0.00049898,120]
[340693466,1729691440766,-1350.49,0.00049898,120]
[340693467,1729691440776,-500.0,0.00049898,120]
[340693468,1729691440785,-685.55,0.00049898,120]
[340693469,1729691440794,-1746.68,0.00049898,120]
[340693470,1729691440803,-500.0,0.00049898,120]
[340693471,1729691440813,-7984.63,0.00049898,21]
[340693472,1729691440822,-500.0,0.00049898,120]
[340693473,1729691440832,-1000.0,0.00049898,120]
[340693474,1729691440841,-500.0,0.00049898,120]
[340693475,1729691440850,-1489.42,0.00049898,120]
[340693476,1729691440860,-2543.92,0.00049898,120]
[340693477,1729691440869,-2091.74,0.00049898,120]
[340693478,1729691440878,-732.66,0.00049899,120]
[340693479,1729691440888,-150.24829129,0.00049899,2]
[340693480,1729691440897,-500.0,0.00049899,120]
[340693481,1729691440906,-731.05,0.00049899,120]
[340693482,1729691440916,-500.0,0.00049899,120]
[340693483,1729691440925,-500.0,0.00049899,120]
[340693484,1729691440935,-500.0,0.00049899,120]
[340693485,1729691440944,-894.45,0.00049899,120]
[340693486,1729691440953,-500.0,0.00049899,120]
[340693487,1729691440963,-500.0,0.00049899,120]
[340693488,1729691440972,-500.0,0.00049899,120]
[340693489,1729691440982,-500.0,0.00049899,120]
[340693490,1729691440991,-500.0,0.00049899,120]
[340693491,1729691441000,-500.0,0.00049899,120]
[340693492,1729691441010,-500.0,0.00049899,120]
[340693493,1729691441019,-744.01,0.00049899,120]
[340693494,1729691441028,-500.0,0.00049899,120]
[340693495,1729691441037,-525.55339336,0.00049899,120]
[340693496,1729691441046,-500.0,0.00049899,120]
[340693497,1729691441056,-509.36558032,0.00049899,120]
[340693498,1729691441066,-500.0,0.00049899,120]
[340693499,1729691441075,-500.0,0.00049899,120]
[340693500,1729691441085,-515.02,0.00049899,120]
[340693501,1729691441094,-500.0,0.00049899,120]
[340693502,1729691441103,-500.0,0.00049899,120]
[340693503,1729691441112,-500.0,0.00049899,120]
[340693504,1729691441121,-502.18142595,0.00049899,120]
[340693505,1729691441130,-500.0,0.00049899,120]
[340693506,1729691441140,-500.0,0.00049899,120]
[340693507,1729691441149,-500.0,0.00049899,120]
[340693508,1729691441158,-637.9,0.00049899,120]
[340693509,1729691441168,-500.0,0.00049899,120]
[340693510,1729691441176,-500.0,0.00049899,120]
[340693511,1729691441186,-512.58269544,0.00049899,120]
[340693512,1729691441195,-500.0,0.00049899,120]
[340693513,1729691441204,-187.77387309,0.00049899,30]
[340693514,1729691441213,-780.02,0.00049899,120]
[340693515,1729691441223,-513.26994232,0.00049899,120]
[340693516,1729691441233,-500.0,0.00049899,120]
[340693517,1729691441242,-500.0,0.00049899,120]
[340693518,1729691441251,-510.24606036,0.00049899,120]
[340693519,1729691441261,-513.98300657,0.00049899,120]
[340693520,1729691441273,-500.0,0.00049899,120]
[340693521,1729691441283,-238.46134207,0.00049899,120]
[340693522,1729691441292,-500.0,0.00049899,120]
[340693523,1729691441301,-500.0,0.00049899,120]
[340693524,1729691441310,-500.0,0.00049899,120]
[340693525,1729691441319,-500.0,0.00049899,120]
[340693526,1729691441330,-500.0,0.00049899,120]
[340693527,1729691441339,-500.0,0.00049899,120]
[340693528,1729691441349,-1426.92,0.00049899,120]
[340693529,1729691441358,-500.0,0.00049899,120]
[340693530,1729691441367,-625.59,0.00049899,120]
[340693531,1729691441377,-500.0,0.00049899,120]
[340693532,1729691441386,-500.0,0.00049899,120]
[340693533,1729691441396,-285.63965405,0.00049899,120]
[340693534,1729691441405,-500.0,0.00049899,120]
[340693535,1729691441414,-500.0,0.00049899,120]
[340693536,1729691441423,-500.0,0.00049899,120]
[340693537,1729691441433,-500.0,0.00049899,120]
[340693538,1729691441442,-500.0,0.00049899,120]
[340693539,1729691441452,-500.0,0.00049899,120]
[340693540,1729691441462,-500.0,0.00049899,120]
[340693541,1729691441473,-500.0,0.00049899,120]
[340693542,1729691441483,-608.65307883,0.00049899,120]
[340693543,1729691441492,-500.0,0.00049899,120]
[340693544,1729691441501,-500.0,0.00049899,120]
[340693545,1729691441510,-500.0,0.00049899,120]
[340693546,1729691441520,-500.0,0.00049899,120]
[340693547,1729691441529,-500.0,0.00049899,120]
[340693548,1729691441539,-500.0,0.00049899,120]
[340693549,1729691441548,-319.57,0.00049899,120]
[340693550,1729691441557,-329.11908121,0.00049899,120]
[340693551,1729691441567,-500.0,0.00049899,120]
[340693552,1729691441580,-500.0,0.00049899,120]
[340693553,1729691441589,-500.0,0.00049899,120]
[340693554,1729691441599,-500.0,0.00049899,120]
[340693555,1729691441608,-500.0,0.00049899,120]
[340693556,1729691441618,-500.0,0.00049899,120]
[340693557,1729691441627,-662.16,0.00049899,120]
[340693558,1729691441636,-518.51,0.00049899,120]
[340693559,1729691441645,-500.0,0.00049899,120]
[340693560,1729691441656,-500.0,0.00049899,120]
[340693561,1729691441665,-552.08674227,0.00049899,120]
[340693562,1729691441674,-500.0,0.00049899,120]
[340693563,1729691441684,-283.55559575,0.00049899,120]
[340693564,1729691441693,-500.0,0.00049899,120]
[340693565,1729691441702,-500.0,0.00049899,120]
[340693566,1729691441711,-500.0,0.00049899,120]
[340693567,1729691441720,-500.0,0.00049899,120]
[340693568,1729691441729,-500.0,0.00049899,120]
[340693569,1729691441740,-500.0,0.00049899,120]
[340693570,1729691441750,-1251.52,0.00049899,120]
[340693571,1729691441758,-500.0,0.00049899,120]
[340693572,1729691441768,-500.0,0.00049899,120]
[340693573,1729691441778,-500.0,0.00049899,120]
[340693574,1729691441787,-500.0,0.00049899,120]
[340693575,1729691441797,-151.616122,0.00049899,120]
[340693576,1729691441807,-1448.29,0.00049899,120]
[340693577,1729691441816,-500.0,0.00049899,120]
[340693578,1729691441828,-446.21786285,0.00049899,120]
[340693579,1729691441838,-506.48033026,0.00049899,120]
[340693580,1729691441847,-500.0,0.00049899,120]
[340693581,1729691441857,-500.0,0.00049899,120]
[340693582,1729691441867,-151.0,0.00049899,120]
[340693583,1729691441876,-500.0,0.00049899,120]
[340693584,1729691441885,-500.0,0.00049899,120]
[340693585,1729691441895,-151.0,0.00049899,120]
[340693586,1729691441904,-500.0,0.00049899,120]
[340693587,1729691441913,-500.0,0.00049899,120]
[340693588,1729691441923,-151.0,0.00049899,120]
[340693589,1729691441932,-531.48,0.00049899,120]
[340693590,1729691441941,-500.0,0.00049899,120]
[340693591,1729691441950,-500.0,0.00049899,120]
[340693592,1729691441960,-512.18,0.00049899,120]
[340693593,1729691441969,-502.78400312,0.00049899,120]
[340693594,1729691441979,-151.0,0.00049899,30]
[340693595,1729691441989,-500.0,0.00049899,120]
[340693596,1729691441998,-504.7918794,0.00049899,120]
[340693597,1729691442007,-151.0,0.00049899,120]
[340693598,1729691442017,-3362.71,0.00049899,120]
[340693599,1729691442026,-500.0,0.00049899,120]
[340693600,1729691442035,-500.0,0.00049899,120]
[340693601,1729691442045,-503.7064466,0.00049899,120]
[340693602,1729691442054,-500.0,0.00049899,120]
[340693603,1729691442063,-730.54,0.00049899,120]
[340693604,1729691442072,-500.0,0.00049899,120]
[340693605,1729691442082,-500.0,0.00049899,120]
[340693606,1729691442091,-500.0,0.00049899,120]
[340693607,1729691442100,-500.0,0.00049899,120]
[340693608,1729691442109,-500.0,0.00049899,120]
[340693609,1729691442118,-500.0,0.00049899,120]
[340693610,1729691442127,-500.0,0.00049899,120]
[340693611,1729691442137,-500.0,0.00049899,120]
[340693612,1729691442146,-503.65675156,0.00049899,120]
[340693613,1729691442155,-151.0,0.00049899,120]
[340693614,1729691442165,-151.0,0.00049899,120]
[340693615,1729691442174,-507.0966865,0.00049899,120]
[340693616,1729691442183,-501.62275549,0.00049899,120]
[340693617,1729691442192,-831.29,0.00049899,120]
[340693618,1729691442202,-500.0,0.00049899,120]
[340693619,1729691442211,-500.0,0.00049899,120]
[340693620,1729691442220,-505.78120344,0.00049899,120]
[340693621,1729691442229,-151.0,0.00049899,120]
[340693622,1729691442241,-500.0,0.00049899,120]
[340693623,1729691442255,-506.45911627,0.00049899,120]
[340693624,1729691442265,-500.0,0.00049899,120]
[340693625,1729691442274,-591.17,0.00049899,120]
[340693626,1729691442283,-500.0,0.00049899,120]
[340693627,1729691442293,-500.0,0.00049899,120]
[340693628,1729691442303,-501.30922786,0.00049899,120]
[340693629,1729691442313,-500.0,0.00049899,120]
[340693630,1729691442322,-151.717129,0.00049899,120]
[340693631,1729691442332,-500.0,0.00049899,120]
[340693632,1729691442342,-500.0,0.00049899,120]
[340693633,1729691442351,-502.23473977,0.00049899,120]
[340693634,1729691442360,-500.0,0.00049899,120]
[340693635,1729691442370,-151.0,0.00049899,120]
[340693636,1729691442379,-500.0,0.00049899,120]
[340693637,1729691442390,-500.0,0.00049899,120]
[340693638,1729691442399,-500.0,0.00049899,120]
[340693639,1729691442408,-500.0,0.00049899,120]
[340693640,1729691442417,-505.64167131,0.00049899,120]
[340693641,1729691442426,-500.0,0.00049899,120]
[340693642,1729691442436,-558.36,0.00049899,120]
[340693643,1729691442445,-972.62,0.00049899,120]
[340693644,1729691442455,-505.80367072,0.00049899,120]
[340693645,1729691442464,-500.0,0.00049899,120]
[340693646,1729691442473,-504.6611571,0.00049899,120]
[340693647,1729691442483,-505.8286324,0.00049899,120]
[340693648,1729691442493,-500.0,0.00049899,120]
[340693649,1729691442502,-507.83066145,0.00049899,120]
[340693650,1729691442511,-4500.25,0.00049899,120]
[340693651,1729691442521,-305.694,0.00049899,30]
[340693652,1729691442531,-500.0,0.00049899,120]
[340693653,1729691442540,-151.0,0.00049899,120]
[340693654,1729691442550,-243.77742,0.00049899,30]
[340693655,1729691442559,-202.60590499,0.00049899,120]
[340693656,1729691442568,-507.1369738,0.00049899,120]
[340693657,1729691442578,-491.49140979,0.00049899,120]
[340693658,1729691442588,-872.5,0.00049899,120]
[340693659,1729691442598,-151.492781,0.00049899,120]
[340693660,1729691442609,-1016.47,0.00049899,120]
[340693661,1729691442618,-500.0,0.00049899,120]
[340693662,1729691442627,-503.68196282,0.00049899,120]
[340693663,1729691442636,-500.0,0.00049899,120]
[340693664,1729691442646,-151.0,0.00049899,120]
[340693665,1729691442657,-507.58579015,0.00049899,120]
[340693666,1729691442667,-500.0,0.00049899,120]
[340693667,1729691442676,-2359.59,0.00049899,120]
[340693668,1729691442686,-151.0,0.00049899,120]
[340693669,1729691442696,-500.0,0.00049899,120]
[340693670,1729691442705,-506.6517594,0.00049899,120]
[340693671,1729691442714,-2640.22,0.00049899,120]
[340693672,1729691442723,-5436.64,0.00049899,120]
[340693673,1729691442733,-502.83289146,0.00049899,120]
[340693674,1729691442744,-151.0,0.00049899,120]
[340693675,1729691442754,-500.0,0.00049899,120]
[340693676,1729691442762,-500.0,0.00049899,120]
[340693677,1729691442772,-1934.131835,0.00049899,120]
[340693678,1729691442781,-1934.131835,0.00049899,120]
[340693679,1729691442791,-151.0,0.00049899,120]
[340693681,1729691442800,-2910.4,0.00049899,120]
[340693684,1729691442809,-2127.62,0.00049899,120]
[340693685,1729691442819,-500.0,0.00049899,120]
[340693686,1729691442828,-500.0,0.00049899,120]
[340693687,1729691442837,-500.0,0.00049899,120]
[340693688,1729691442846,-153.434799,0.00049899,120]
[340693689,1729691442855,-3750.3,0.00049899,120]
[340693690,1729691442864,-500.0,0.00049899,120]
[340693691,1729691442873,-980.37,0.00049899,120]
[340693692,1729691442883,-500.0,0.00049899,120]
[340693693,1729691442892,-151.0,0.00049899,120]
[340693694,1729691442901,-684.18,0.00049899,120]
[340693695,1729691442910,-500.0,0.00049899,120]
[340693696,1729691442919,-500.0,0.00049899,120]
[340693697,1729691442928,-500.0,0.00049899,120]
[340693698,1729691442937,-500.0,0.00049899,120]
[340693699,1729691442947,-1581.21,0.00049899,120]
[340693700,1729691442956,-500.0,0.00049899,120]
[340693701,1729691442965,-865.01,0.00049899,120]
[340693702,1729691442975,-500.0,0.00049899,120]
[340693703,1729691442984,-379.42981053,0.00049899,120]
[340693704,1729691442994,-500.0,0.00049899,120]
[340693705,1729691443003,-500.0,0.00049899,120]
[340693706,1729691443012,-500.0,0.00049899,120]
[340693707,1729691443022,-500.0,0.00049899,120]
[340693708,1729691443032,-1176.97,0.00049899,120]
[340693709,1729691443041,-500.0,0.00049899,120]
[340693710,1729691443050,-581.37,0.00049899,120]
[340693711,1729691443059,-500.0,0.00049899,120]
[340693712,1729691443069,-500.0,0.00049899,120]
[340693713,1729691443078,-500.0,0.00049899,120]
[340693714,1729691443087,-500.0,0.00049899,120]
[340693715,1729691443097,-500.0,0.00049899,120]
[340693716,1729691443106,-1266.18,0.00049899,120]
[340693717,1729691443115,-262.70848445,0.00049899,120]
[340693718,1729691443125,-500.0,0.00049899,120]
[340693719,1729691443134,-614.39,0.00049899,120]
[340693720,1729691443144,-500.0,0.00049899,120]
[340693721,1729691443153,-500.0,0.00049899,120]
[340693722,1729691443162,-500.0,0.00049899,120]
[340693723,1729691443171,-3561.46,0.00049899,120]
[340693724,1729691443181,-1083.12,0.00049899,120]
[340693725,1729691443190,-500.0,0.00049899,120]
[340693726,1729691443200,-500.0,0.00049899,120]
[340693727,1729691443209,-3814.54,0.00049899,120]
[340693728,1729691443218,-573.02,0.00049899,120]
[340693729,1729691443227,-500.0,0.00049899,120]
[340693730,1729691443238,-500.0,0.000499,2]
[340693731,1729691443248,-161.30453958,0.000499,26]
[340693732,1729691443257,-151.0,0.000499,120]
[340693733,1729691443266,-151.0,0.000499,120]
[340693735,1729691443276,-151.0,0.000499,120]
[340693737,1729691443285,-151.0,0.000499,120]
[340693738,1729691443294,-151.0,0.000499,120]
[340693740,1729691443304,-151.0,0.000499,120]
[340693742,1729691443313,-152.581182,0.000499,120]
[340693744,1729691443322,-154.723051,0.000499,120]
[340693746,1729691443332,-151.0,0.000499,120]
[340693748,1729691443341,-151.0,0.000499,120]
[340693750,1729691443350,-163.385638,0.000499,120]
[340693751,1729691443360,-151.0,0.000499,30]
[340693752,1729691443369,-151.0,0.000499,120]
[340693753,1729691443379,-151.0,0.000499,120]
[340693754,1729691443388,-3200.0,0.000499,18]
[340693755,1729691443397,-1934.131835,0.000499,120]
[340693756,1729691443407,-1934.131835,0.000499,120]
[340693757,1729691443416,-151.0,0.000499,120]
[340693758,1729691443426,-20711.7542531,0.00049953,10]
[340693759,1729691443435,-151.3,0.00049959,120]
[340693760,1729691443444,-31067.6313796,0.00049969,10]
[340693761,1729691443453,-10355.8771265,0.0004997,10]
[340693762,1729691443463,-6868.42428762,0.00049972,2]
[340693763,1729691443472,-188.08216854,0.00049972,2]
[340693764,1729691443484,-500.0,0.00049973,10]
[340693765,1729691443494,-368.28254938,0.00049973,10]
[340693766,1729691443504,-151.0,0.00049979,120]
[340693767,1729691443514,-153.408266,0.00049979,120]
[340693768,1729691443524,-156.494944,0.00049979,120]
[340693769,1729691443534,-151.0,0.0004998,120]
[340693770,1729691443544,-1934.131835,0.0004998,120]
[340693771,1729691443554,-1934.131835,0.0004998,120]
[340693772,1729691443563,-179.569422,0.0004998,120]
[340693773,1729691443576,-733.38,0.00049989,120]
[340693774,1729691443586,-500.0,0.00049989,120]
[340693775,1729691443596,-500.0,0.00049989,120]
[340693776,1729691443606,-249.76518836,0.00049989,120]
[340693777,1729691443616,-500.0,0.00049989,120]
[340693778,1729691443626,-708.96,0.00049989,120]
[340693779,1729691443636,-500.0,0.00049989,120]
[340693780,1729691443646,-500.0,0.00049989,120]
[340693781,1729691443656,-500.0,0.00049989,120]
[340693782,1729691443666,-500.0,0.00049989,120]
[340693783,1729691443675,-776.39,0.00049989,120]
[340693784,1729691443685,-1558.2,0.00049989,120]
[340693785,1729691443694,-503.91,0.00049989,120]
[340693786,1729691443704,-500.0,0.00049989,120]
[340693787,1729691443713,-586.63,0.00049989,120]
[340693788,1729691443722,-505.23538322,0.00049989,120]
[340693789,1729691443734,-500.0,0.00049989,120]
[340693790,1729691443743,-500.0,0.00049989,120]
[340693791,1729691443753,-501.64037453,0.00049989,120]
[340693792,1729691443763,-500.0,0.00049989,120]
[340693793,1729691443774,-500.0,0.00049989,120]
[340693794,1729691443784,-502.3601936,0.00049989,120]
[340693795,1729691443793,-500.0,0.00049989,120]
[340693796,1729691443803,-500.0,0.00049989,120]